[Event "9th RTU Rapid 2019"]
[Site "Riga"]
[Date "2019.08.04"]
[Round "3.8"]
[White "Shailesh, Dravid"]
[Black "Omelja, Artem"]
[Result "1-0"]
[WhiteElo "2134"]
[BlackElo "2436"]
[PlyCount "113"]
[EventDate "2019.08.05"]
[EventType "swiss"]
[EventCountry "LAT"]
[TimeControl "5400+30"]
[WhiteClock "0:01:41"]
[BlackClock "0:05:03"]

1. e4 {[%emt 1:15:21]} e6 {[%emt 1:15:22]} 2. d4 {[%emt 0:00:28]} d5 {[%emt 0:00:26]} 3. Nd2 {[%emt 0:00:27]} c5 {[%emt 0:00:28]} 4. Ngf3 {[%emt 0:00:27]} Nc6 {[%emt 0:00:30]} 5. exd5 {[%emt 0:00:27]} exd5 {[%emt 0:00:27]} 6. Bb5 {[%emt 0:00:27]} cxd4 {[%emt 0:00:29]} 7. Nxd4 {[%emt 0:00:34]} Bd7 {[%emt 0:00:29]} 8. N2f3 {[%emt 0:00:45]} Bd6 {[%emt 0:00:28]} 9. O-O {[%emt 0:00:29]} Nge7 {[%emt 0:00:27]} 10. c3 {[%emt 0:00:33]} O-O {[%emt 0:00:30]} 11. Bg5 {[%emt 0:00:26]} Qc7 {[%emt 0:00:49]} 12. Be2 {[%emt 0:00:55]} a6 {[%emt 0:00:33]} 13. Bh4 {[%emt 0:00:30]} Nxd4 {[%emt 0:01:34]} 14. cxd4 {[%emt 0:00:26]} Nf5 {[%emt 0:00:31]} 15. Bg5 {[%emt 0:00:42]} Qb6 {[%emt 0:00:49]} 16. Bd3 {[%emt 0:01:24]} h6 {[%emt 0:00:35]} 17. Bd2 {[%emt 0:01:10]} Nxd4 {[%emt 0:00:43]} 18. Be3 {[%emt 0:00:26]} Nxf3+ {[%emt 0:00:31]} 19. Qxf3 {[%emt 0:00:27]} Qxb2 {[%emt 0:00:57]} 20. g3 {[%emt 0:00:59]} Bc6 {[%emt 0:01:06]} 21. Qf5 {[%emt 0:00:39]} g6 {[%emt 0:00:30]} 22. Qg4 {[%emt 0:00:38]} Qg7 {[%emt 0:00:42]} 23. Qh4 {[%emt 0:00:45]} g5 {[%emt 0:01:04]} 24. Qg4 {[%emt 0:00:27]} Be5 {[%emt 0:00:36]} 25. Rae1 {[%emt 0:00:37]} Rae8 {[%emt 0:00:56]} 26. Bc5 {[%emt 0:00:34]} Qf6 {[%emt 0:00:53]} 27. Bxf8 {[%emt 0:00:29]} Kxf8 {[%emt 0:00:28]} 28. Re2 {[%emt 0:00:56]} Bd4 {[%emt 0:00:54]} 29. Rxe8+ {[%emt 0:00:32]} Bxe8 {[%emt 0:00:32]} 30. Kg2 {[%emt 0:01:04]} Be5 {[%emt 0:00:45]} 31. Qc8 {[%emt 0:01:12]} Qc6 {[%emt 0:00:33]} 32. Qf5 {[%emt 0:00:28]} Qf6 {[%emt 0:00:45]} 33. Qc8 {[%emt 0:01:36]} Qc6 {[%emt 0:00:36]} 34. Qg4 {[%emt 0:00:28]} Qc3 {[%emt 0:00:42]} 35. Qf5 {[%emt 0:00:59]} Bc6 {[%emt 0:00:38]} 36. f4 {[%emt 0:01:08]} gxf4 {[%emt 0:00:32]} 37. gxf4 {[%emt 0:00:27]} d4+ {[%emt 0:02:51]} 38. Kh3 {[%emt 0:00:54]} Bd7 {[%emt 0:02:12]} 39. Qxd7 {[%emt 0:00:52]} Qxd3+ {[%emt 0:00:26]} 40. Kg2 {[%emt 0:00:28]} Qe4+ {[%emt 0:00:32]} 41. Kg3 {[%emt 0:00:54]} Bf6 {[%emt 0:00:43]} 42. Qc8+ {[%emt 0:00:50]} Kg7 {[%emt 0:00:35]} 43. Qg4+ {[%emt 0:00:27]} Kf8 {[%emt 0:00:47]} 44. Qf3 {[%emt 0:00:49]} Qg6+ {[%emt 0:01:15]} 45. Kh3 {[%emt 0:00:26]} h5 {[%emt 0:00:40]} 46. Rf2 {[%emt 0:00:45]} Qf5+ {[%emt 0:00:34]} 47. Kg2 {[%emt 0:00:27]} b5 {[%emt 0:00:43]} 48. Kh1 {[%emt 0:00:59]} Qb1+ {[%emt 0:01:00]} 49. Rf1 {[%emt 0:00:26]} Qxa2 {[%emt 0:00:35]} 50. Qa8+ {[%emt 0:00:27]} Ke7 {[%emt 0:00:57]} 51. Re1+ {[%emt 0:00:27]} Kd6 {[%emt 0:00:29]} 52. Qf8+ {[%emt 0:01:10]} Kc6 {[%emt 0:00:55]} 53. Rc1+ {[%emt 0:00:42]} Kb6 {[%emt 0:00:26]} 54. Qd6+ {[%emt 0:00:31]} Ka5 {[%emt 0:00:26]} 55. Qxf6 {[%emt 0:00:34]} Qd5+ {[%emt 0:00:32]} 56. Kg1 {[%emt 0:00:26]} b4 {[%emt 0:00:51]} 57. Ra1+ {[%emt 0:00:31]} 1-0

[Event "9th RTU Rapid 2019"]
[Site "Riga"]
[Date "2019.08.04"]
[Round "3.9"]
[White "Bulmaga, Irina"]
[Black "Alvarado Ascanio, Francisco"]
[Result "1-0"]
[WhiteElo "2434"]
[BlackElo "2166"]
[PlyCount "79"]
[EventDate "2019.08.05"]
[EventType "swiss"]
[EventCountry "LAT"]
[TimeControl "5400+30"]
[WhiteClock "0:00:12"]
[BlackClock "0:02:25"]

1. e4 {[%emt 1:15:23]} e6 {[%emt 1:15:21]} 2. d4 {[%emt 0:00:26]} d5 {[%emt 0:00:27]} 3. Nc3 {[%emt 0:00:27]} h6 {[%emt 0:00:26]} 4. Bd3 {[%emt 0:00:47]} Nc6 {[%emt 0:00:28]} 5. Nf3 {[%emt 0:00:39]} Nb4 {[%emt 0:00:28]} 6. Be2 {[%emt 0:01:06]} Nf6 {[%emt 0:00:51]} 7. e5 {[%emt 0:00:28]} Ne4 {[%emt 0:00:36]} 8. a3 {[%emt 0:00:40]} Nxc3 {[%emt 0:00:44]} 9. bxc3 {[%emt 0:00:26]} Nc6 {[%emt 0:00:27]} 10. O-O {[%emt 0:00:33]} Na5 {[%emt 0:00:33]} 11. Be3 {[%emt 0:00:38]} Bd7 {[%emt 0:01:20]} 12. Nd2 {[%emt 0:00:31]} Rc8 {[%emt 0:01:46]} 13. c4 {[%emt 0:01:21]} dxc4 {[%emt 0:00:43]} 14. Nxc4 {[%emt 0:00:27]} Nxc4 {[%emt 0:00:43]} 15. Bxc4 {[%emt 0:00:26]} Bc6 {[%emt 0:02:22]} 16. Bb3 {[%emt 0:00:30]} b5 {[%emt 0:00:46]} 17. c4 {[%emt 0:00:46]} bxc4 {[%emt 0:00:38]} 18. Bxc4 {[%emt 0:00:37]} Be7 {[%emt 0:02:23]} 19. Qc2 {[%emt 0:01:45]} Qd7 {[%emt 0:01:21]} 20. Rfc1 {[%emt 0:01:23]} Bb7 {[%emt 0:06:06]} 21. Rab1 {[%emt 0:00:30]} c6 {[%emt 0:00:30]} 22. Rb3 {[%emt 0:00:53]} O-O {[%emt 0:00:31]} 23. Qe4 {[%emt 0:00:32]} h5 {[%emt 0:00:58]} 24. Rcb1 {[%emt 0:02:25]} Ba8 {[%emt 0:00:49]} 25. Ba6 {[%emt 0:00:31]} Rcd8 {[%emt 0:00:40]} 26. Qc2 {[%emt 0:02:58]} c5 {[%emt 0:00:45]} 27. dxc5 {[%emt 0:00:56]} Bd5 {[%emt 0:00:33]} 28. Bc4 {[%emt 0:01:02]} Bxc4 {[%emt 0:00:35]} 29. Qxc4 {[%emt 0:00:26]} Qc7 {[%emt 0:00:33]} 30. f4 {[%emt 0:00:58]} Rd5 {[%emt 0:00:26]} 31. c6 {[%emt 0:00:42]} Rfd8 {[%emt 0:00:29]} 32. Rb7 {[%emt 0:00:30]} Rd1+ {[%emt 0:00:30]} 33. Rxd1 {[%emt 0:01:00]} Rxd1+ {[%emt 0:00:26]} 34. Kf2 {[%emt 0:00:26]} Bh4+ {[%emt 0:00:34]} 35. g3 {[%emt 0:00:40]} Qa5 {[%emt 0:00:30]} 36. Qe2 {[%emt 0:00:50]} Rh1 {[%emt 0:00:33]} 37. Rb8+ {[%emt 0:00:49]} Bd8 {[%emt 0:00:27]} 38. Kg2 {[%emt 0:01:07]} Qd5+ {[%emt 0:00:27]} 39. Kh3 {[%emt 0:00:31]} g6 {[%emt 0:00:33]} 40. c7 {[%emt 0:00:30]} 1-0

[Event "9th RTU Rapid 2019"]
[Site "Riga"]
[Date "2019.08.04"]
[Round "3.10"]
[White "Radkov, Bazhen D."]
[Black "Gagare, Shardul"]
[Result "0-1"]
[WhiteElo "2133"]
[BlackElo "2430"]
[PlyCount "66"]
[EventDate "2019.08.05"]
[EventType "swiss"]
[EventCountry "LAT"]
[TimeControl "5400+30"]
[WhiteClock "0:06:03"]
[BlackClock "0:00:20"]

1. d4 {[%emt 1:15:23]} Nf6 {[%emt 1:15:23]} 2. c4 {[%emt 0:00:34]} e6 {[%emt 0:00:27]} 3. Nf3 {[%emt 0:00:29]} d5 {[%emt 0:00:27]} 4. e3 {[%emt 0:00:56]} Be7 {[%emt 0:00:32]} 5. Nc3 {[%emt 0:00:56]} O-O {[%emt 0:00:32]} 6. b3 {[%emt 0:00:31]} c5 {[%emt 0:00:28]} 7. Bb2 {[%emt 0:00:28]} Nc6 {[%emt 0:00:32]} 8. Bd3 {[%emt 0:00:30]} cxd4 {[%emt 0:00:41]} 9. exd4 {[%emt 0:00:34]} b6 {[%emt 0:00:28]} 10. O-O {[%emt 0:00:37]} Bb7 {[%emt 0:00:28]} 11. Rc1 {[%emt 0:01:25]} Rc8 {[%emt 0:00:49]} 12. Qe2 {[%emt 0:02:35]} Re8 {[%emt 0:00:58]} 13. Rfd1 {[%emt 0:00:40]} Bf8 {[%emt 0:00:39]} 14. Qe3 {[%emt 0:00:54]} g6 {[%emt 0:01:43]} 15. Ne2 {[%emt 0:01:35]} Bg7 {[%emt 0:03:13]} 16. h3 {[%emt 0:00:48]} Ba6 {[%emt 0:01:03]} 17. Ne5 {[%emt 0:02:53]} dxc4 {[%emt 0:00:53]} 18. Nxc6 {[%emt 0:01:27]} Rxc6 {[%emt 0:00:27]} 19. bxc4 {[%emt 0:00:32]} Qc8 {[%emt 0:00:33]} 20. Rc2 {[%emt 0:02:54]} Bxc4 {[%emt 0:00:28]} 21. Rdc1 {[%emt 0:00:34]} b5 {[%emt 0:00:33]} 22. a4 {[%emt 0:00:40]} a6 {[%emt 0:00:33]} 23. axb5 {[%emt 0:00:28]} axb5 {[%emt 0:00:27]} 24. Qd2 {[%emt 0:01:06]} Nd5 {[%emt 0:00:35]} 25. Ba3 {[%emt 0:01:01]} Qa6 {[%emt 0:01:43]} 26. Bc5 {[%emt 0:00:36]} Bxd3 {[%emt 0:00:49]} 27. Qxd3 {[%emt 0:00:27]} b4 {[%emt 0:00:28]} 28. Qb3 {[%emt 0:01:11]} Rec8 {[%emt 0:01:06]} 29. Ng3 {[%emt 0:00:50]} Qa3 {[%emt 0:01:42]} 30. Qxa3 {[%emt 0:01:07]} bxa3 {[%emt 0:00:27]} 31. Ra2 {[%emt 0:00:26]} Bxd4 {[%emt 0:00:27]} 32. Bxd4 {[%emt 0:00:37]} Rxc1+ {[%emt 0:00:27]} 33. Kh2 {[%emt 0:00:26]} Ra8 {[%emt 0:00:26]} 0-1

[Event "9th RTU Rapid 2019"]
[Site "Riga"]
[Date "2019.08.04"]
[Round "3.11"]
[White "Kopylov, Michael"]
[Black "Solys, Laimutis"]
[Result "1-0"]
[WhiteElo "2414"]
[BlackElo "2143"]
[PlyCount "55"]
[EventDate "2019.08.05"]
[EventType "swiss"]
[EventCountry "LAT"]
[TimeControl "5400+30"]
[WhiteClock "0:00:57"]
[BlackClock "0:04:27"]

1. d4 {[%emt 1:15:25]} d5 {[%emt 1:15:48]} 2. c4 {[%emt 0:00:30]} e6 {[%emt 0:00:30]} 3. Nf3 {[%emt 0:00:30]} c5 {[%emt 0:00:30]} 4. g3 {[%emt 0:00:38]} Nf6 {[%emt 0:00:31]} 5. Bg2 {[%emt 0:00:30]} Nc6 {[%emt 0:00:30]} 6. O-O {[%emt 0:00:30]} Be7 {[%emt 0:00:36]} 7. cxd5 {[%emt 0:00:55]} exd5 {[%emt 0:00:30]} 8. dxc5 {[%emt 0:00:33]} Bxc5 {[%emt 0:00:32]} 9. Nc3 {[%emt 0:00:52]} O-O {[%emt 0:00:35]} 10. Bg5 {[%emt 0:00:30]} d4 {[%emt 0:00:38]} 11. Ne4 {[%emt 0:00:30]} Be7 {[%emt 0:00:36]} 12. Bxf6 {[%emt 0:00:30]} Bxf6 {[%emt 0:00:30]} 13. b4 {[%emt 0:00:30]} d3 {[%emt 0:05:29]} 14. Nxf6+ {[%emt 0:01:51]} Qxf6 {[%emt 0:00:30]} 15. Qxd3 {[%emt 0:01:18]} Nxb4 {[%emt 0:00:30]} 16. Qb3 {[%emt 0:02:00]} Nc6 {[%emt 0:01:09]} 17. Rac1 {[%emt 0:01:03]} Rb8 {[%emt 0:00:55]} 18. Rfd1 {[%emt 0:02:09]} Be6 {[%emt 0:00:34]} 19. Qa4 {[%emt 0:00:30]} Rfd8 {[%emt 0:00:42]} 20. e3 {[%emt 0:00:46]} a6 {[%emt 0:02:12]} 21. Nd2 {[%emt 0:00:39]} Ne5 {[%emt 0:00:54]} 22. Ne4 {[%emt 0:01:13]} Qe7 {[%emt 0:01:04]} 23. Rxd8+ {[%emt 0:01:29]} Rxd8 {[%emt 0:01:14]} 24. Qa5 {[%emt 0:00:55]} Nc6 {[%emt 0:00:50]} 25. Qb6 {[%emt 0:01:15]} Bxa2 {[%emt 0:03:12]} 26. Nc5 {[%emt 0:00:34]} Bd5 {[%emt 0:00:56]} 27. Nxb7 {[%emt 0:00:56]} Rb8 {[%emt 0:00:36]} 28. Bxd5 {[%emt 0:00:32]} 1-0

[Event "9th RTU Rapid 2019"]
[Site "Riga"]
[Date "2019.08.04"]
[Round "3.12"]
[White "Gudovskis, Konstantins"]
[Black "Korchmar, Vasiliy"]
[Result "0-1"]
[WhiteElo "2015"]
[BlackElo "2413"]
[PlyCount "130"]
[EventDate "2019.08.05"]
[EventType "swiss"]
[EventCountry "LAT"]
[TimeControl "5400+30"]
[WhiteClock "0:01:32"]
[BlackClock "0:00:07"]

1. d4 {[%emt 1:15:23]} Nf6 {[%emt 1:15:21]} 2. c4 {[%emt 0:00:26]} g6 {[%emt 0:00:29]} 3. Nc3 {[%emt 0:00:28]} d5 {[%emt 0:00:27]} 4. Nf3 {[%emt 0:00:32]} Bg7 {[%emt 0:00:26]} 5. Bg5 {[%emt 0:00:32]} Ne4 {[%emt 0:00:37]} 6. cxd5 {[%emt 0:00:27]} Nxg5 {[%emt 0:00:27]} 7. Nxg5 {[%emt 0:00:28]} e6 {[%emt 0:00:26]} 8. Nf3 {[%emt 0:00:28]} exd5 {[%emt 0:00:26]} 9. e3 {[%emt 0:00:29]} O-O {[%emt 0:00:28]} 10. b4 {[%emt 0:00:29]} c6 {[%emt 0:01:44]} 11. Qb3 {[%emt 0:01:38]} Nd7 {[%emt 0:01:14]} 12. Be2 {[%emt 0:00:57]} Nb6 {[%emt 0:02:52]} 13. b5 {[%emt 0:02:35]} Be6 {[%emt 0:01:09]} 14. bxc6 {[%emt 0:01:24]} bxc6 {[%emt 0:00:27]} 15. Na4 {[%emt 0:00:40]} Nxa4 {[%emt 0:00:39]} 16. Qxa4 {[%emt 0:00:28]} c5 {[%emt 0:00:27]} 17. Rb1 {[%emt 0:01:28]} c4 {[%emt 0:00:40]} 18. Rb7 {[%emt 0:00:38]} Rb8 {[%emt 0:02:44]} 19. Rxa7 {[%emt 0:01:20]} Rb2 {[%emt 0:00:42]} 20. Bd1 {[%emt 0:01:03]} Bf5 {[%emt 0:01:27]} 21. O-O {[%emt 0:00:29]} Qb8 {[%emt 0:02:42]} 22. Ne1 {[%emt 0:02:31]} Be4 {[%emt 0:02:32]} 23. Ra5 {[%emt 0:01:41]} Rc8 {[%emt 0:00:33]} 24. Bc2 {[%emt 0:02:27]} Bxc2 {[%emt 0:00:27]} 25. Nxc2 {[%emt 0:00:26]} Rb1 {[%emt 0:00:31]} 26. Rxd5 {[%emt 0:00:45]} Rxf1+ {[%emt 0:00:38]} 27. Kxf1 {[%emt 0:00:27]} Qxh2 {[%emt 0:00:28]} 28. Qd7 {[%emt 0:02:09]} Rb8 {[%emt 0:00:51]} 29. Rb5 {[%emt 0:00:27]} Rf8 {[%emt 0:00:58]} 30. Qd5 {[%emt 0:00:43]} c3 {[%emt 0:00:40]} 31. Rb7 {[%emt 0:00:30]} Qh1+ {[%emt 0:00:27]} 32. Ke2 {[%emt 0:00:27]} Qc1 {[%emt 0:00:27]} 33. Qb3 {[%emt 0:00:28]} Qd2+ {[%emt 0:00:31]} 34. Kf3 {[%emt 0:00:26]} h5 {[%emt 0:01:04]} 35. Nb4 {[%emt 0:01:07]} g5 {[%emt 0:01:02]} 36. g3 {[%emt 0:00:50]} h4 {[%emt 0:00:36]} 37. gxh4 {[%emt 0:00:29]} gxh4 {[%emt 0:00:26]} 38. Rc7 {[%emt 0:00:39]} Qe1 {[%emt 0:00:46]} 39. Qxc3 {[%emt 0:00:28]} Qh1+ {[%emt 0:00:30]} 40. Kg4 {[%emt 0:00:28]} h3 {[%emt 0:00:26]} 41. Qc6 {[%emt 0:00:27]} Qh2 {[%emt 0:00:36]} 42. Rc8 {[%emt 0:00:28]} f5+ {[%emt 0:00:30]} 43. Kh4 {[%emt 0:00:30]} Qxf2+ {[%emt 0:00:28]} 44. Kxh3 {[%emt 0:00:27]} Qxe3+ {[%emt 0:00:26]} 45. Kg2 {[%emt 0:00:28]} Qd2+ {[%emt 0:00:26]} 46. Kf3 {[%emt 0:00:33]} Qxb4 {[%emt 0:00:33]} 47. Rxf8+ {[%emt 0:00:40]} Qxf8 {[%emt 0:00:29]} 48. d5 {[%emt 0:00:30]} Bh6 {[%emt 0:00:38]} 49. Qe6+ {[%emt 0:00:30]} Kh7 {[%emt 0:00:27]} 50. d6 {[%emt 0:00:27]} Qa8+ {[%emt 0:00:26]} 51. Kf2 {[%emt 0:00:28]} Qa7+ {[%emt 0:00:28]} 52. Kf1 {[%emt 0:00:29]} Qa6+ {[%emt 0:00:27]} 53. Kf2 {[%emt 0:00:28]} Qb6+ {[%emt 0:00:26]} 54. Kf1 {[%emt 0:00:29]} Qb1+ {[%emt 0:00:29]} 55. Ke2 {[%emt 0:00:34]} Qc2+ {[%emt 0:00:28]} 56. Kf3 {[%emt 0:00:30]} Qd3+ {[%emt 0:00:27]} 57. Kf2 {[%emt 0:00:29]} Qd4+ {[%emt 0:00:29]} 58. Kf3 {[%emt 0:00:31]} Qd3+ {[%emt 0:00:29]} 59. Kf2 {[%emt 0:00:26]} Bg7 {[%emt 0:00:50]} 60. Qe7 {[%emt 0:00:35]} Kg6 {[%emt 0:00:34]} 61. Qe8+ {[%emt 0:00:27]} Kg5 {[%emt 0:00:29]} 62. Qe6 {[%emt 0:00:38]} Bd4+ {[%emt 0:00:26]} 63. Ke1 {[%emt 0:00:26]} Qe4+ {[%emt 0:00:00]} 64. Qxe4 {[%emt 0:00:28]} fxe4 {[%emt 0:00:00]} 65. d7 {[%emt 0:00:35]} Bb6 {[%emt 0:00:10]} 0-1

[Event "9th RTU Rapid 2019"]
[Site "Riga"]
[Date "2019.08.04"]
[Round "3.13"]
[White "Galchenko, Matvey"]
[Black "Ioannidis, Evgenios"]
[Result "0-1"]
[WhiteElo "2360"]
[BlackElo "2134"]
[PlyCount "87"]
[EventDate "2019.08.05"]
[EventType "swiss"]
[EventCountry "LAT"]
[TimeControl "5400+30"]
[WhiteClock "0:01:42"]
[BlackClock "0:00:14"]

1. f4 {[%emt 1:15:34]} d5 {[%emt 1:15:23]} 2. Nf3 {[%emt 0:00:25]} Bg4 {[%emt 0:00:27]} 3. Ne5 {[%emt 0:00:26]} Bf5 {[%emt 0:00:48]} 4. c4 {[%emt 0:00:26]} dxc4 {[%emt 0:01:28]} 5. Nc3 {[%emt 0:00:37]} Nf6 {[%emt 0:00:28]} 6. Qa4+ {[%emt 0:00:33]} Nbd7 {[%emt 0:00:28]} 7. Qxc4 {[%emt 0:00:32]} Nxe5 {[%emt 0:00:37]} 8. fxe5 {[%emt 0:00:26]} Nd7 {[%emt 0:00:29]} 9. g4 {[%emt 0:03:16]} Be6 {[%emt 0:02:04]} 10. Qf4 {[%emt 0:00:35]} c6 {[%emt 0:00:59]} 11. Bg2 {[%emt 0:00:43]} h6 {[%emt 0:00:26]} 12. d4 {[%emt 0:01:07]} Qb6 {[%emt 0:01:21]} 13. O-O {[%emt 0:00:46]} g5 {[%emt 0:00:32]} 14. Qe4 {[%emt 0:00:29]} Bg7 {[%emt 0:00:44]} 15. Be3 {[%emt 0:00:26]} Qxb2 {[%emt 0:00:50]} 16. Qd3 {[%emt 0:01:01]} Nb6 {[%emt 0:00:39]} 17. Rfb1 {[%emt 0:01:37]} Qa3 {[%emt 0:00:29]} 18. Bc1 {[%emt 0:00:27]} Qa5 {[%emt 0:01:14]} 19. Bd2 {[%emt 0:01:17]} Nc4 {[%emt 0:01:37]} 20. Be1 {[%emt 0:01:31]} Qa6 {[%emt 0:00:57]} 21. d5 {[%emt 0:01:25]} Rd8 {[%emt 0:00:34]} 22. e4 {[%emt 0:02:05]} Bxg4 {[%emt 0:01:25]} 23. Qg3 {[%emt 0:01:33]} Nxe5 {[%emt 0:00:40]} 24. Bf1 {[%emt 0:00:35]} Qa3 {[%emt 0:00:40]} 25. Rb3 {[%emt 0:00:34]} Qd6 {[%emt 0:00:28]} 26. Bg2 {[%emt 0:01:03]} O-O {[%emt 0:01:40]} 27. Rxb7 {[%emt 0:01:07]} Bc8 {[%emt 0:02:15]} 28. Rxa7 {[%emt 0:01:16]} cxd5 {[%emt 0:00:27]} 29. Nxd5 {[%emt 0:01:12]} Nc6 {[%emt 0:00:27]} 30. Qxd6 {[%emt 0:01:11]} Rxd6 {[%emt 0:00:29]} 31. Rd1 {[%emt 0:00:46]} Rxd5 {[%emt 0:00:57]} 32. exd5 {[%emt 0:00:35]} Nxa7 {[%emt 0:00:25]} 33. a4 {[%emt 0:00:26]} Bd7 {[%emt 0:00:40]} 34. a5 {[%emt 0:00:28]} Nb5 {[%emt 0:00:32]} 35. Bb4 {[%emt 0:00:28]} Nd6 {[%emt 0:01:14]} 36. Rd2 {[%emt 0:00:49]} Rb8 {[%emt 0:00:30]} 37. Bc5 {[%emt 0:00:33]} Rb5 {[%emt 0:00:31]} 38. Bxd6 {[%emt 0:00:32]} exd6 {[%emt 0:00:27]} 39. Ra2 {[%emt 0:00:26]} Bd4+ {[%emt 0:00:41]} 40. Kf1 {[%emt 0:00:25]} Bc8 {[%emt 0:01:15]} 41. Ra4 {[%emt 0:00:34]} Ba6 {[%emt 0:00:38]} 42. Ke1 {[%emt 0:00:32]} Bc3+ {[%emt 0:00:26]} 43. Kd1 {[%emt 0:00:27]} Rxa5 {[%emt 0:00:27]} 44. Ra1 {[%emt 0:00:05]} 0-1

[Event "9th RTU Rapid 2019"]
[Site "Riga"]
[Date "2019.08.04"]
[Round "3.14"]
[White "Martynyuk, Elizaveta"]
[Black "Suleymenov, Alisher"]
[Result "0-1"]
[WhiteElo "2125"]
[BlackElo "2348"]
[PlyCount "102"]
[EventDate "2019.08.05"]
[EventType "swiss"]
[EventCountry "LAT"]
[TimeControl "5400+30"]
[WhiteClock "0:00:48"]
[BlackClock "0:00:10"]

1. e4 {[%emt 1:15:25]} c5 {[%emt 1:15:28]} 2. Nf3 {[%emt 0:00:24]} d6 {[%emt 0:00:29]} 3. d4 {[%emt 0:00:26]} cxd4 {[%emt 0:00:26]} 4. Nxd4 {[%emt 0:00:27]} Nf6 {[%emt 0:00:26]} 5. Nc3 {[%emt 0:00:26]} Nc6 {[%emt 0:00:31]} 6. Bg5 {[%emt 0:00:32]} e6 {[%emt 0:00:32]} 7. Qd2 {[%emt 0:00:29]} a6 {[%emt 0:00:26]} 8. O-O-O {[%emt 0:00:37]} Bd7 {[%emt 0:00:27]} 9. Kb1 {[%emt 0:00:39]} Be7 {[%emt 0:00:39]} 10. Bxf6 {[%emt 0:00:28]} Bxf6 {[%emt 0:00:43]} 11. Nxc6 {[%emt 0:00:45]} Bxc6 {[%emt 0:00:27]} 12. Qxd6 {[%emt 0:00:30]} Qb6 {[%emt 0:11:17]} 13. Qa3 {[%emt 0:02:53]} Be7 {[%emt 0:00:39]} 14. Qb3 {[%emt 0:01:23]} Qxf2 {[%emt 0:00:28]} 15. Bc4 {[%emt 0:04:29]} O-O {[%emt 0:01:47]} 16. Rhf1 {[%emt 0:01:06]} Qc5 {[%emt 0:00:30]} 17. a4 {[%emt 0:01:43]} b5 {[%emt 0:01:38]} 18. axb5 {[%emt 0:00:32]} axb5 {[%emt 0:00:26]} 19. Nxb5 {[%emt 0:01:11]} Rab8 {[%emt 0:00:45]} 20. Rxf7 {[%emt 0:03:31]} Rxf7 {[%emt 0:00:33]} 21. Bxe6 {[%emt 0:00:30]} Qxb5 {[%emt 0:01:33]} 22. Bxf7+ {[%emt 0:00:53]} Kf8 {[%emt 0:00:26]} 23. Qxb5 {[%emt 0:00:45]} Rxb5 {[%emt 0:00:27]} 24. Bd5 {[%emt 0:00:34]} Bxd5 {[%emt 0:00:38]} 25. exd5 {[%emt 0:00:40]} Bf6 {[%emt 0:00:27]} 26. b3 {[%emt 0:00:29]} Ke7 {[%emt 0:00:27]} 27. Rd3 {[%emt 0:00:55]} Ra5 {[%emt 0:00:40]} 28. Kc1 {[%emt 0:00:39]} Kd6 {[%emt 0:00:26]} 29. c4 {[%emt 0:00:37]} Ra1+ {[%emt 0:00:31]} 30. Kd2 {[%emt 0:00:30]} Ra2+ {[%emt 0:00:26]} 31. Ke3 {[%emt 0:00:27]} Rxg2 {[%emt 0:00:33]} 32. b4 {[%emt 0:00:28]} Rb2 {[%emt 0:00:33]} 33. b5 {[%emt 0:00:36]} Rb4 {[%emt 0:00:28]} 34. c5+ {[%emt 0:00:52]} Kxc5 {[%emt 0:00:27]} 35. d6 {[%emt 0:00:26]} Rxb5 {[%emt 0:00:26]} 36. d7 {[%emt 0:00:27]} Rb8 {[%emt 0:00:26]} 37. Ke4 {[%emt 0:00:29]} Kc6 {[%emt 0:00:49]} 38. Kf5 {[%emt 0:00:30]} Rb5+ {[%emt 0:00:29]} 39. Ke6 {[%emt 0:00:26]} Re5+ {[%emt 0:00:27]} 40. Kf7 {[%emt 0:00:27]} Re7+ {[%emt 0:00:26]} 41. Kg8 {[%emt 0:00:27]} Rxd7 {[%emt 0:00:26]} 42. Rxd7 {[%emt 0:00:34]} Kxd7 {[%emt 0:00:26]} 43. Kxh7 {[%emt 0:00:28]} Ke7 {[%emt 0:00:34]} 44. Kg6 {[%emt 0:00:34]} Kf8 {[%emt 0:00:26]} 45. h3 {[%emt 0:00:30]} Kg8 {[%emt 0:00:27]} 46. Kf5 {[%emt 0:00:35]} Kh7 {[%emt 0:00:27]} 47. Kf4 {[%emt 0:00:28]} Kh6 {[%emt 0:00:27]} 48. Kg4 {[%emt 0:00:28]} g6 {[%emt 0:00:27]} 49. h4 {[%emt 0:00:32]} Be7 {[%emt 0:00:27]} 50. Kg3 {[%emt 0:00:42]} Kh5 {[%emt 0:00:26]} 51. Kh3 {[%emt 0:00:26]} Bxh4 {[%emt 0:00:27]} 0-1